fUST/lending_fUST_20260218
["ID","MTS","AMOUNT","RATE_DAILY","PERIOD"]
[405894065,1771402248637,-158.52,0.00017986,2]
[405894066,1771402248647,-166.15664322,0.00017994,2]
[405894067,1771402248658,-287047.88389056,0.00018,2]
[405894068,1771402248667,-358762.75492756,0.00018,2]
[405894069,1771402248679,-402.26712187,0.00018,2]
[405894070,1771402248690,-168.0,0.0001805,2]
[405894071,1771402248807,-1000.0,0.00018068,2]
[405894072,1771402248818,-791.0,0.00018068,2]
[405894073,1771402248827,-726.33,0.00018082,2]
[405894074,1771402248840,-1764.9,0.00018082,2]
[405894075,1771402248851,-500.0,0.00018082,2]
[405894076,1771402248861,-538.14,0.00018082,2]
[405894077,1771402248870,-500.0,0.00018082,2]
[405894078,1771402248879,-1549.77,0.00018082,2]
[405894079,1771402248891,-571.12,0.00018082,2]
[405894080,1771402248899,-1320.96,0.00018082,2]
[405894081,1771402248908,-500.0,0.00018082,2]
[405894082,1771402248917,-848.46,0.00018082,2]
[405894083,1771402248929,-3265.42,0.00018082,2]
[405894084,1771402248939,-500.0,0.00018082,2]
[405894085,1771402248949,-1269.91,0.00018082,2]
[405894086,1771402248960,-449.03586742,0.00018082,2]
[405894087,1771402248970,-1097.86,0.00018082,2]
[405894088,1771402248980,-1766.05,0.00018082,2]
[405894089,1771402248989,-500.0,0.00018082,2]
[405894090,1771402248999,-549.73,0.00018082,2]
[405894091,1771402249010,-500.0,0.00018082,2]
[405894092,1771402249020,-10313.6,0.00018082,2]
[405894093,1771402249031,-613.46,0.00018082,2]
[405894094,1771402249043,-500.0,0.00018082,2]
[405894095,1771402249054,-500.0,0.00018225,2]
[405894096,1771402249063,-168.0,0.00018253,2]
[405894097,1771402249073,-905.48004875,0.00018297,2]
[405894098,1771402249083,-168.0,0.00018302,2]
[405894099,1771402249096,-500.0,0.0001832,2]
[405894100,1771402249105,-500.0,0.00018339,2]
[405894101,1771402249114,-168.0,0.00018347,2]
[405894102,1771402249124,-726.33,0.00018356,2]
[405894103,1771402249134,-1764.9,0.00018356,2]
[405894104,1771402249145,-500.0,0.00018356,2]
[405894105,1771402249155,-538.14,0.00018356,2]
[405894106,1771402249165,-500.0,0.00018356,2]
[405894107,1771402249175,-1549.77,0.00018356,2]
[405894108,1771402249184,-571.12,0.00018356,2]
[405894109,1771402249195,-1320.96,0.00018356,2]
[405894110,1771402249204,-500.0,0.00018356,2]
[405894111,1771402249215,-848.46,0.00018356,2]
[405894112,1771402249224,-3265.42,0.00018356,2]
[405894113,1771402249234,-500.0,0.00018356,2]
[405894114,1771402249243,-1269.91,0.00018356,2]
[405894115,1771402249252,-1097.86,0.00018356,2]
[405894116,1771402249261,-1766.05,0.00018356,2]
[405894117,1771402249270,-500.0,0.00018356,2]
[405894118,1771402249279,-549.73,0.00018356,2]
[405894119,1771402249288,-500.0,0.00018356,2]
[405894120,1771402249297,-10313.6,0.00018356,2]
[405894121,1771402249307,-613.46,0.00018356,2]
[405894122,1771402249315,-500.0,0.00018356,2]
[405894123,1771402249324,-1919.5287482,0.00018369,2]
[405894124,1771402249334,-2619.01147432,0.00018417,2]
[405894125,1771402249343,-168.0,0.0001844,2]
[405894126,1771402249352,-168.0,0.00018577,2]
[405894127,1771402249361,-500.0,0.00018598,2]
[405894128,1771402249371,-726.33,0.0001863,2]
[405894129,1771402249381,-1764.9,0.0001863,2]
[405894130,1771402249392,-500.0,0.0001863,2]
[405894131,1771402249401,-538.14,0.0001863,2]
[405894132,1771402249412,-500.0,0.0001863,2]
[405894133,1771402249424,-1549.77,0.0001863,2]
[405894134,1771402249434,-1320.96,0.0001863,2]
[405894135,1771402249445,-571.12,0.0001863,2]
[405894136,1771402249455,-500.0,0.0001863,2]
[405894137,1771402249465,-848.46,0.0001863,2]
[405894138,1771402249475,-3265.42,0.0001863,2]
[405894139,1771402249484,-500.0,0.0001863,2]
[405894140,1771402249494,-1269.91,0.0001863,2]
[405894141,1771402249503,-1097.86,0.0001863,2]
[405894142,1771402249513,-1766.05,0.0001863,2]
[405894143,1771402249522,-500.0,0.0001863,2]
[405894144,1771402249531,-549.73,0.0001863,2]
[405894145,1771402249540,-500.0,0.0001863,2]
[405894146,1771402249549,-10313.6,0.0001863,2]
[405894147,1771402249561,-613.46,0.0001863,2]
[405894148,1771402249570,-500.0,0.0001863,2]
[405894149,1771402249579,-168.0,0.00018751,2]
[405894150,1771402249590,-500.0,0.00018763,2]
[405894151,1771402249599,-181.96095319,0.00018848,2]
[405894152,1771402249608,-168.0,0.00018884,2]
[405894153,1771402249618,-726.33,0.00018904,2]
[405894154,1771402249628,-1764.9,0.00018904,2]
[405894155,1771402249638,-500.0,0.00018904,2]
[405894156,1771402249648,-538.14,0.00018904,2]
[405894157,1771402249659,-500.0,0.00018904,2]
[405894158,1771402249669,-1549.77,0.00018904,2]
[405894159,1771402249679,-1320.96,0.00018904,2]
[405894160,1771402249689,-571.12,0.00018904,2]
[405894161,1771402249698,-500.0,0.00018904,2]
[405894162,1771402249709,-848.46,0.00018904,2]
[405894163,1771402249719,-3265.42,0.00018904,2]
[405894164,1771402249729,-500.0,0.00018904,2]
[405894165,1771402249738,-1269.91,0.00018904,2]
[405894166,1771402249748,-1097.86,0.00018904,2]
[405894167,1771402249760,-1766.05,0.00018904,2]
[405894168,1771402249779,-500.0,0.00018904,2]
[405894169,1771402249789,-549.73,0.00018904,2]
[405894170,1771402249799,-500.0,0.00018904,2]
[405894171,1771402249809,-10313.6,0.00018904,2]
[405894172,1771402249818,-613.46,0.00018904,2]
[405894173,1771402249828,-500.0,0.00018904,2]
[405894174,1771402249838,-168.0,0.00018926,2]
[405894175,1771402249848,-500.0,0.00018972,2]
[405894176,1771402249857,-1000.0,0.00019,30]
[405894177,1771402249867,-2761.35727602,0.00019073,2]
[405894178,1771402249878,-3000.0,0.000191,2]
[405894179,1771402249893,-3771.37652303,0.00019121,2]
[405894180,1771402249903,-242.43469052,0.00019125,32]
[405894181,1771402249915,-214.91929211,0.00019126,32]
[405894182,1771402249924,-726.33,0.00019178,2]
[405894183,1771402249935,-1764.9,0.00019178,2]
[405894184,1771402249947,-454.28,0.00019178,2]
[405894185,1771402249960,-200.0,0.00019178,2]
[405894186,1771402249970,-500.0,0.00019178,2]
[405894187,1771402249981,-538.14,0.00019178,2]
[405894188,1771402249991,-517.59,0.00019178,2]
[405894189,1771402250000,-500.0,0.00019178,2]
[405894190,1771402250009,-1549.77,0.00019178,2]
[405894191,1771402250019,-1320.96,0.00019178,2]
[405894192,1771402250029,-571.12,0.00019178,2]
[405894193,1771402250038,-500.0,0.00019178,2]
[405894194,1771402250047,-848.46,0.00019178,2]
[405894195,1771402250055,-3265.42,0.00019178,2]
[405894196,1771402250064,-500.0,0.00019178,2]
[405894197,1771402250074,-1269.91,0.00019178,2]
[405894198,1771402250083,-1097.86,0.00019178,2]
[405894199,1771402250092,-1766.05,0.00019178,2]
[405894200,1771402250101,-500.0,0.00019178,2]
[405894201,1771402250110,-549.73,0.00019178,2]
[405894202,1771402250119,-500.0,0.00019178,2]
[405894203,1771402250128,-10313.6,0.00019178,2]
[405894204,1771402250137,-613.46,0.00019178,2]
[405894205,1771402250146,-500.0,0.00019178,2]
[405894206,1771402250155,-623.16,0.000192,2]
[405894207,1771402250164,-164.4,0.000192,2]
[405894208,1771402250173,-500.0,0.00019209,2]
[405894209,1771402250183,-500.0,0.00019264,2]
[405894210,1771402250192,-500.0,0.0001927,2]
[405894211,1771402250201,-977.09434916,0.00019307,2]
[405894212,1771402250210,-500.0,0.00019348,2]
[405894213,1771402250220,-500.0,0.00019395,2]
[405894214,1771402250231,-176230.204692,0.000194,2]
[405894215,1771402250243,-726.33,0.00019452,2]
[405894216,1771402250252,-1764.9,0.00019452,2]
[405894217,1771402250261,-500.0,0.00019452,2]
[405894218,1771402250271,-538.14,0.00019452,2]
[405894219,1771402250280,-500.0,0.00019452,2]
[405894220,1771402250290,-1549.77,0.00019452,2]
[405894221,1771402250302,-1320.96,0.00019452,2]
[405894222,1771402250312,-571.12,0.00019452,2]
[405894223,1771402250322,-500.0,0.00019452,2]
[405894224,1771402250332,-848.46,0.00019452,2]
[405894225,1771402250342,-3265.42,0.00019452,2]
[405894226,1771402250351,-500.0,0.00019452,2]
[405894227,1771402250363,-1269.91,0.00019452,2]
[405894228,1771402250372,-1097.86,0.00019452,2]
[405894229,1771402250381,-1766.05,0.00019452,2]
[405894230,1771402250390,-500.0,0.00019452,2]
[405894231,1771402250399,-549.73,0.00019452,2]
[405894232,1771402250409,-500.0,0.00019452,2]
[405894233,1771402250418,-10313.6,0.00019452,2]
[405894234,1771402250428,-613.46,0.00019452,2]
[405894235,1771402250438,-500.0,0.00019452,2]
[405894236,1771402250447,-5533.3769517,0.00019461,2]
[405894237,1771402250458,-312.0,0.00019509,2]
[405894238,1771402250470,-2500.0,0.000197,2]
[405894239,1771402250481,-726.33,0.00019726,2]
[405894240,1771402250491,-1764.9,0.00019726,2]
[405894241,1771402250500,-500.0,0.00019726,2]
[405894242,1771402250509,-538.14,0.00019726,2]
[405894243,1771402250519,-500.0,0.00019726,2]
[405894244,1771402250529,-1549.77,0.00019726,2]
[405894245,1771402250538,-1320.96,0.00019726,2]
[405894246,1771402250547,-571.12,0.00019726,2]
[405894247,1771402250556,-500.0,0.00019726,2]
[405894248,1771402250565,-848.46,0.00019726,2]
[405894249,1771402250575,-3265.42,0.00019726,2]
[405894250,1771402250585,-500.0,0.00019726,2]
[405894251,1771402250594,-1269.91,0.00019726,2]
[405894252,1771402250604,-1097.86,0.00019726,2]
[405894253,1771402250615,-1766.05,0.00019726,2]
[405894254,1771402250624,-500.0,0.00019726,2]
[405894255,1771402250632,-549.73,0.00019726,2]
[405894256,1771402250641,-500.0,0.00019726,2]
[405894257,1771402250650,-10313.6,0.00019726,2]
[405894258,1771402250659,-613.46,0.00019726,2]
[405894259,1771402250668,-500.0,0.00019726,2]
[405894260,1771402250677,-159.94089833,0.00019772,2]
[405894261,1771402250686,-1000.0,0.0001985,2]
[405894262,1771402250695,-1000.0,0.00019875,2]
[405894263,1771402250703,-1000.0,0.00019875,2]
[405894264,1771402250712,-11248.98350717,0.000199,2]
[405894265,1771402250721,-1234.6632853,0.00019949,2]
[405894266,1771402250730,-538199.989036,0.00019998,2]
[405894267,1771402250739,-169.49,0.0002,2]
[405894268,1771402250748,-4356.96,0.0002,2]
[405894269,1771402250757,-62028.4263286,0.0002,2]
[405894270,1771402250766,-1000.0,0.0002,2]
[405894271,1771402250775,-500.9723179,0.0002,2]
[405894272,1771402250783,-24973.02891979,0.0002,2]
[405894273,1771402250792,-726.33,0.0002,2]
[405894274,1771402250801,-1764.9,0.0002,2]
[405894275,1771402250810,-574.71357616,0.0002,2]
[405894276,1771402250819,-538.14,0.0002,2]
[405894277,1771402250828,-500.0,0.0002,2]
[405894278,1771402250837,-1549.77,0.0002,2]
[405894279,1771402250846,-251.843986,0.0002,10]
[405894280,1771402250855,-1320.96,0.0002,2]
[405894281,1771402250864,-571.12,0.0002,2]
[405894282,1771402250873,-500.0,0.0002,2]
[405894283,1771402250882,-848.46,0.0002,2]
[405894284,1771402250894,-3265.42,0.0002,2]
[405894285,1771402250902,-500.0,0.0002,2]
[405894286,1771402250911,-1269.91,0.0002,2]
[405894287,1771402250920,-1097.86,0.0002,2]
[405894288,1771402250929,-1766.05,0.0002,2]
[405894289,1771402250938,-500.0,0.0002,2]
[405894290,1771402250947,-549.73,0.0002,2]
[405894291,1771402250956,-152.66298842,0.0002,2]
[405894292,1771402250967,-500.0,0.0002,2]
[405894293,1771402250976,-10313.6,0.0002,2]
[405894294,1771402250985,-613.46,0.0002,2]
[405894295,1771402250994,-295.55515066,0.0002,2]
[405894296,1771402251003,-726.33,0.00020273,2]
[405894297,1771402251011,-1764.9,0.00020273,2]
[405894298,1771402251020,-538.14,0.00020273,2]
[405894299,1771402251115,-500.0,0.00020273,2]
[405894300,1771402251125,-1549.77,0.00020273,2]
[405894301,1771402251134,-1320.96,0.00020273,2]
[405894302,1771402251143,-571.12,0.00020273,2]
[405894303,1771402251152,-500.0,0.00020273,2]
[405894304,1771402251161,-848.46,0.00020273,2]
[405894305,1771402251170,-3265.42,0.00020273,2]
[405894306,1771402251178,-471.41516776,0.00020273,2]
[405894307,1771402251187,-1269.91,0.00020273,2]
[405894308,1771402251196,-1097.86,0.00020273,2]
[405894309,1771402251205,-1766.05,0.00020273,2]
[405894310,1771402251214,-500.0,0.00020273,2]
[405894311,1771402251222,-549.73,0.00020273,2]
[405894312,1771402251231,-500.0,0.00020273,2]
[405894313,1771402251241,-10313.6,0.00020273,2]
[405894314,1771402251250,-613.46,0.00020273,2]
[405894315,1771402251260,-725.0,0.00020476,2]
[405894316,1771402251270,-181.0,0.00020476,2]
[405894317,1771402251282,-237.352,0.00020476,2]
[405894318,1771402251293,-726.33,0.00020547,2]
[405894319,1771402251303,-1764.9,0.00020547,2]
[405894320,1771402251314,-538.14,0.00020547,2]
[405894321,1771402251324,-500.0,0.00020547,2]
[405894322,1771402251335,-1549.77,0.00020547,2]
[405894323,1771402251346,-1320.96,0.00020547,2]
[405894324,1771402251357,-571.12,0.00020547,2]
[405894325,1771402251367,-500.0,0.00020547,2]
[405894326,1771402251376,-848.46,0.00020547,2]
[405894327,1771402251386,-3265.42,0.00020547,2]
[405894328,1771402251395,-1269.91,0.00020547,2]
[405894329,1771402251407,-1097.86,0.00020547,2]
[405894330,1771402251416,-1766.05,0.00020547,2]
[405894331,1771402251426,-500.0,0.00020547,2]
[405894332,1771402251436,-549.73,0.00020547,2]
[405894333,1771402251448,-500.0,0.00020547,2]
[405894334,1771402251458,-10313.6,0.00020547,2]
[405894335,1771402251468,-613.46,0.00020547,2]
[405894336,1771402251477,-347.692184,0.00020548,2]
[405894337,1771402251487,-157.996,0.00020661,2]
[405894338,1771402251496,-726.33,0.00020821,2]
[405894339,1771402251507,-1764.9,0.00020821,2]
[405894340,1771402251517,-538.14,0.00020821,2]
[405894341,1771402251527,-500.0,0.00020821,2]
[405894342,1771402251538,-1549.77,0.00020821,2]
[405894343,1771402251549,-1320.96,0.00020821,2]
[405894344,1771402251559,-571.12,0.00020821,2]
[405894345,1771402251569,-203.51067567,0.00020821,2]
[405894346,1771402251578,-848.46,0.00020821,2]
[405894347,1771402251590,-3265.42,0.00020821,2]
[405894348,1771402251601,-1269.91,0.00020821,2]
[405894349,1771402251612,-1097.86,0.00020821,2]
[405894350,1771402251621,-1766.05,0.00020821,2]
[405894351,1771402251630,-500.0,0.00020821,2]
[405894352,1771402251640,-549.73,0.00020821,2]
[405894353,1771402251650,-500.0,0.00020821,2]
[405894354,1771402251661,-10313.6,0.00020821,2]
[405894355,1771402251671,-613.46,0.00020821,2]
[405894356,1771402251680,-242.43469052,0.00020887,48]
[405894357,1771402251690,-214.91929211,0.00020889,48]
[405894358,1771402251700,-623.16,0.00021,2]
[405894359,1771402251711,-150.0,0.00021,2]
[405894360,1771402251721,-726.33,0.00021095,2]
[405894361,1771402251730,-1764.9,0.00021095,2]
[405894362,1771402251740,-538.14,0.00021095,2]
[405894363,1771402251750,-500.0,0.00021095,2]
[405894364,1771402251760,-1549.77,0.00021095,2]
[405894365,1771402251773,-1320.96,0.00021095,2]
[405894366,1771402251783,-571.12,0.00021095,2]
[405894367,1771402251793,-848.46,0.00021095,2]
[405894368,1771402251804,-3265.42,0.00021095,2]
[405894369,1771402251813,-1269.91,0.00021095,2]
[405894370,1771402251822,-1097.86,0.00021095,2]
[405894371,1771402251831,-1766.05,0.00021095,2]
[405894372,1771402251841,-500.0,0.00021095,2]
[405894373,1771402251851,-549.73,0.00021095,2]
[405894374,1771402251861,-500.0,0.00021095,2]
[405894375,1771402251870,-10313.6,0.00021095,2]
[405894376,1771402251879,-613.46,0.00021095,2]
[405894377,1771402251890,-726.33,0.00021369,2]
[405894378,1771402251901,-1764.9,0.00021369,2]
[405894379,1771402251911,-538.14,0.00021369,2]
[405894380,1771402251922,-500.0,0.00021369,2]
[405894381,1771402251932,-1549.77,0.00021369,2]
[405894382,1771402251942,-1320.96,0.00021369,2]
[405894383,1771402251954,-571.12,0.00021369,2]
[405894384,1771402251967,-848.46,0.00021369,2]
[405894385,1771402251978,-3265.42,0.00021369,2]
[405894386,1771402251987,-1269.91,0.00021369,2]
[405894387,1771402251996,-1097.86,0.00021369,2]
[405894388,1771402252004,-1766.05,0.00021369,2]
[405894389,1771402252015,-540.81184808,0.00021369,2]
[405894390,1771402252023,-549.73,0.00021369,2]
[405894391,1771402252032,-500.84962807,0.00021369,2]
[405894392,1771402252041,-10313.6,0.00021369,2]
[405894393,1771402252050,-613.46,0.00021369,2]
[405894394,1771402252060,-500.0,0.0002137,2]
[405894395,1771402252069,-339.0,0.00021509,2]
[405894396,1771402252078,-1325.84229235,0.00021517,3]
[405894397,1771402252087,-173.80341506,0.00021615,56]
[405894398,1771402252096,-726.33,0.00021643,2]
[405894399,1771402252105,-1764.9,0.00021643,2]
[405894400,1771402252114,-538.14,0.00021643,2]
[405894401,1771402252123,-500.0,0.00021643,2]
[405894402,1771402252132,-1549.77,0.00021643,2]
[405894403,1771402252141,-1320.96,0.00021643,2]
[405894404,1771402252150,-571.12,0.00021643,2]
[405894405,1771402252159,-848.46,0.00021643,2]
[405894406,1771402252168,-3265.42,0.00021643,2]
[405894407,1771402252177,-1269.91,0.00021643,2]
[405894408,1771402252185,-1097.86,0.00021643,2]
[405894409,1771402252194,-1766.05,0.00021643,2]
[405894410,1771402252203,-549.73,0.00021643,2]
[405894411,1771402252211,-10313.6,0.00021643,2]
[405894412,1771402252220,-613.46,0.00021643,2]
[405894413,1771402252229,-739.25377653,0.00021644,2]
[405894414,1771402252237,-1000.0,0.00021862,10]
[405894415,1771402252247,-1000.0,0.00021862,10]
[405894416,1771402252256,-579.0,0.00021862,10]
[405894417,1771402252265,-726.33,0.00021917,2]
[405894418,1771402252273,-1764.9,0.00021917,2]
[405894419,1771402252282,-538.14,0.00021917,2]
[405894420,1771402252291,-500.0,0.00021917,2]
[405894421,1771402252300,-1549.77,0.00021917,2]
[405894422,1771402252308,-1320.96,0.00021917,2]
[405894423,1771402252317,-571.12,0.00021917,2]
[405894424,1771402252327,-848.46,0.00021917,2]
[405894425,1771402252336,-3265.42,0.00021917,2]
[405894426,1771402252344,-1269.91,0.00021917,2]
[405894427,1771402252353,-1097.86,0.00021917,2]
[405894428,1771402252362,-1766.05,0.00021917,2]
[405894429,1771402252371,-549.73,0.00021917,2]
[405894430,1771402252379,-10313.6,0.00021917,2]
[405894431,1771402252388,-613.46,0.00021917,2]
[405894432,1771402252397,-150.0,0.00021918,2]
[405894433,1771402252406,-150.0,0.00021918,2]
[405894434,1771402252415,-150.0,0.00021918,2]
[405894435,1771402252424,-162.157595,0.00021948,56]
[405894436,1771402252433,-330.7709865,0.00022,2]
[405894437,1771402252443,-153.72,0.00022,7]
[405894438,1771402252452,-167.17,0.00022,2]
[405894439,1771402252463,-162.8407206,0.00022009,2]
[405894440,1771402252473,-726.33,0.00022191,2]
[405894441,1771402252483,-1764.9,0.00022191,2]
[405894442,1771402252493,-538.14,0.00022191,2]
[405894443,1771402252502,-256.94696577,0.00022191,2]
[405894444,1771402252512,-1549.77,0.00022191,2]
[405894445,1771402252523,-1320.96,0.00022191,2]
[405894446,1771402252535,-571.12,0.00022191,2]
[405894447,1771402252546,-848.46,0.00022191,2]
[405894448,1771402252556,-3265.42,0.00022191,2]
[405894449,1771402252566,-1269.91,0.00022191,2]
[405894450,1771402252575,-1097.86,0.00022191,2]
[405894451,1771402252588,-1766.05,0.00022191,2]
[405894452,1771402252598,-549.73,0.00022191,2]
[405894453,1771402252607,-10313.6,0.00022191,2]
[405894454,1771402252617,-613.46,0.00022191,2]
[405894455,1771402252627,-11248.98350713,0.00022259,2]
[405894456,1771402252636,-726.33,0.00022465,2]
[405894457,1771402252646,-1764.9,0.00022465,2]
[405894458,1771402252655,-538.14,0.00022465,2]
[405894459,1771402252664,-1549.77,0.00022465,2]
[405894460,1771402252674,-1320.96,0.00022465,2]
[405894461,1771402252683,-571.12,0.00022465,2]
[405894462,1771402252693,-848.46,0.00022465,2]
[405894463,1771402252702,-3265.42,0.00022465,2]
[405894464,1771402252712,-1269.91,0.00022465,2]
[405894465,1771402252722,-1097.86,0.00022465,2]
[405894466,1771402252732,-1766.05,0.00022465,2]
[405894467,1771402252744,-549.73,0.00022465,2]
[405894468,1771402252754,-10313.6,0.00022465,2]
[405894469,1771402252763,-613.46,0.00022465,2]
[405894470,1771402252774,-300.0,0.00022466,2]
[405894471,1771402252783,-200.0,0.00022466,2]
[405894472,1771402252793,-250.0,0.00022466,2]
[405894473,1771402252803,-242.43469052,0.00022649,63]
[405894474,1771402252814,-214.91929211,0.00022652,63]
[405894475,1771402252824,-726.38341048,0.00022739,2]
[405894476,1771402252835,-1765.08402033,0.00022739,2]
[405894477,1771402252845,-538.32883645,0.00022739,2]
[405894478,1771402252855,-1549.90678775,0.00022739,2]
[405894479,1771402252865,-1320.98963767,0.00022739,2]
[405894480,1771402252874,-571.27992409,0.00022739,2]
[405894481,1771402252884,-848.51522345,0.00022739,2]
[405894482,1771402252898,-3265.63827054,0.00022739,2]
[405894483,1771402252908,-1269.95808632,0.00022739,2]
[405894484,1771402252918,-1097.95426442,0.00022739,2]
[405894485,1771402252928,-1766.27519186,0.00022739,2]
[405894486,1771402252939,-549.79252953,0.00022739,2]
[405894487,1771402252949,-10313.63746653,0.00022739,2]
[405894488,1771402252959,-613.696167,0.00022739,2]
[405894489,1771402252968,-164.4,0.000228,7]
[405894490,1771402252978,-1011.22103114,0.00023,2]
[405894491,1771402252988,-450.0,0.00023014,2]
[405894492,1771402252998,-250.0,0.00023014,2]
[405894493,1771402253008,-350.0,0.00023014,2]
[405894494,1771402253018,-223.97990784,0.00023262,120]
[405894495,1771402253028,-623.16,0.000233,14]
[405894496,1771402253038,-166.66666667,0.00023308,120]
[405894497,1771402253048,-153.72,0.000234,7]
[405894498,1771402253058,-289.206,0.00023476,2]
[405894499,1771402253068,-150.27286654,0.00023562,2]
[405894500,1771402253078,-214.51353561,0.00023562,2]
[405894501,1771402253088,-444.54288906,0.00023562,2]
[405894502,1771402253098,-222.69890658,0.00023655,120]
[405894503,1771402253109,-159.94089833,0.00023727,2]
[405894504,1771402253119,-471.0,0.00024,2]
[405894505,1771402253130,-520.47809996,0.00024,2]
[405894506,1771402253140,-743.5267485,0.00024,7]
[405894507,1771402253151,-7664.31318818,0.00024037,2]
[405894508,1771402253162,-1000.0,0.00024049,10]
[405894509,1771402253248,-242.43469052,0.00024412,79]
[405894510,1771402253268,-214.91929211,0.00024415,79]
[405894511,1771402253280,-11358.74145342,0.000245,2]
[405894512,1771402253290,-200.0,0.00024562,120]
[405894513,1771402253301,-48484.43996719,0.000246,10]
[405894514,1771402253310,-11248.98350713,0.00024618,2]
[405894515,1771402253320,-2799.22751495,0.00024651,2]
[405894516,1771402253330,-150.0,0.00024658,2]
[405894517,1771402253339,-249.505828,0.00024658,2]
[405894518,1771402253349,-151.0,0.00024658,2]
[405894519,1771402253358,-151.0,0.00024658,2]
[405894520,1771402253368,-151.0,0.00024658,2]
[405894521,1771402253378,-151.0,0.00024658,2]
[405894522,1771402253388,-199.837408,0.00024658,2]
[405894523,1771402253398,-157.628931,0.00024658,2]
[405894524,1771402253408,-186.891358,0.00024658,2]
[405894525,1771402253419,-186.891358,0.00024658,2]
[405894526,1771402253429,-186.891358,0.00024658,2]
[405894527,1771402253439,-186.891358,0.00024658,2]
[405894528,1771402253449,-186.891358,0.00024658,2]
[405894529,1771402253459,-186.891358,0.00024658,2]
[405894530,1771402253469,-186.891358,0.00024658,2]
[405894531,1771402253479,-186.891358,0.00024658,2]
[405894532,1771402253488,-186.891358,0.00024658,2]
[405894533,1771402253498,-186.891358,0.00024658,2]
[405894534,1771402253508,-186.891358,0.00024658,2]
[405894535,1771402253518,-186.891358,0.00024658,2]
[405894536,1771402253528,-186.891358,0.00024658,2]
[405894537,1771402253538,-186.891358,0.00024658,2]
[405894538,1771402253548,-186.891358,0.00024658,2]
[405894539,1771402253558,-186.891358,0.00024658,2]
[405894540,1771402253567,-186.891358,0.00024658,2]
[405894541,1771402253577,-186.891358,0.00024658,2]
[405894542,1771402253587,-186.891358,0.00024658,2]
[405894543,1771402253597,-186.891352,0.00024658,2]
[405894544,1771402253607,-151.0,0.00024658,2]
[405894545,1771402253617,-151.0,0.00024658,2]
[405894546,1771402253627,-151.0,0.00024658,2]
[405894547,1771402253637,-151.0,0.00024658,2]
[405894548,1771402253647,-151.0,0.00024658,2]
[405894549,1771402253657,-151.0,0.00024658,2]
[405894550,1771402253667,-151.0,0.00024658,2]
[405894551,1771402253676,-151.0,0.00024658,2]
[405894552,1771402253686,-151.0,0.00024658,2]
[405894553,1771402253697,-151.0,0.00024658,2]
[405894554,1771402253707,-151.0,0.00024658,2]
[405894555,1771402253717,-151.0,0.00024658,2]
[405894556,1771402253726,-199.999696,0.00024658,2]
[405894557,1771402253737,-151.0,0.00024658,2]
[405894558,1771402253747,-151.0,0.00024658,2]
[405894559,1771402253756,-151.0,0.00024658,2]
[405894560,1771402253766,-151.0,0.00024658,2]
[405894561,1771402253776,-151.0,0.00024658,2]
[405894562,1771402253786,-151.0,0.00024658,2]
[405894563,1771402253795,-151.0,0.00024658,2]
[405894564,1771402253805,-223.355083,0.00024658,2]